fUST/lending_fUST_20250702
["ID","MTS","AMOUNT","RATE_DAILY","PERIOD"]
[368979118,1751421041732,-151.0,0.00018011,2]
[368979119,1751421041742,-151.0,0.00018011,2]
[368979120,1751421041751,-151.0,0.00018011,2]
[368979121,1751421041761,-500.0,0.00018038,2]
[368979122,1751421041772,-198.60200009,0.00018038,2]
[368979123,1751421041781,-200.22051725,0.00018038,2]
[368979124,1751421041792,-151.0,0.00018038,2]
[368979125,1751421041802,-376.8279916,0.00018066,2]
[368979126,1751421041812,-151.0,0.00018066,2]
[368979127,1751421041822,-151.0,0.00018093,2]
[368979128,1751421041831,-470.60737682,0.00018106,2]
[368979129,1751421041842,-476.08977991,0.00018106,2]
[368979130,1751421041852,-460.0,0.00018106,2]
[368979131,1751421041861,-460.0,0.00018106,2]
[368979132,1751421041871,-527.29341352,0.00018106,2]
[368979133,1751421041880,-460.0,0.00018106,2]
[368979134,1751421041889,-247.75346666,0.00018121,2]
[368979135,1751421041899,-622.4154952,0.000182,2]
[368979136,1751421041908,-622.41549502,0.000182,2]
[368979137,1751421041920,-460.0,0.0001828,2]
[368979138,1751421041930,-482.2694432,0.0001828,2]
[368979139,1751421041939,-460.0,0.0001828,2]
[368979140,1751421041948,-460.0,0.0001828,2]
[368979141,1751421041959,-460.0,0.0001828,2]
[368979142,1751421041969,-460.0,0.0001828,2]
[368979143,1751421041981,-843.47,0.0001828,2]
[368979144,1751421041991,-460.0,0.0001828,2]
[368979145,1751421042001,-726.87,0.0001828,2]
[368979146,1751421042011,-826.09,0.0001828,2]
[368979147,1751421042021,-460.0,0.0001828,2]
[368979148,1751421042031,-460.0,0.0001828,2]
[368979149,1751421042041,-787.68,0.0001828,2]
[368979150,1751421042053,-460.0,0.0001828,2]
[368979151,1751421042063,-460.0,0.0001828,2]
[368979152,1751421042074,-1054.41,0.0001828,2]
[368979153,1751421042084,-460.0,0.0001828,2]
[368979154,1751421042094,-460.0,0.0001828,2]
[368979155,1751421042104,-460.0,0.0001828,2]
[368979156,1751421042114,-460.0,0.0001828,2]
[368979157,1751421042123,-460.0,0.0001828,2]
[368979158,1751421042132,-509.83,0.0001828,2]
[368979159,1751421042142,-460.0,0.0001828,2]
[368979160,1751421042151,-460.0,0.0001828,2]
[368979161,1751421042161,-659.51,0.0001828,2]
[368979162,1751421042171,-486.07290917,0.0001828,2]
[368979163,1751421042181,-460.0,0.0001828,2]
[368979164,1751421042191,-460.0,0.0001828,2]
[368979165,1751421042200,-460.0,0.0001828,2]
[368979166,1751421042209,-460.0,0.0001828,2]
[368979167,1751421042219,-460.0,0.0001828,2]
[368979168,1751421042228,-815.42,0.0001828,2]
[368979169,1751421042238,-460.0,0.0001838,2]
[368979170,1751421042248,-460.0,0.0001838,2]
[368979171,1751421042257,-474.67944748,0.0001838,2]
[368979172,1751421042267,-622.41549502,0.00018452,2]
[368979173,1751421042277,-420.0,0.0001847,2]
[368979174,1751421042287,-1038.94,0.00018544,3]
[368979175,1751421042296,-519.48,0.00018544,3]
[368979176,1751421042306,-460.0,0.00018554,2]
[368979177,1751421042316,-400.45057112,0.00018554,2]
[368979178,1751421042326,-460.0,0.00018554,2]
[368979179,1751421042335,-417.48616467,0.00018554,2]
[368979180,1751421042345,-843.47,0.00018554,2]
[368979181,1751421042355,-460.0,0.00018554,2]
[368979182,1751421042365,-726.87,0.00018554,2]
[368979183,1751421042374,-826.09,0.00018554,2]
[368979184,1751421042383,-460.0,0.00018554,2]
[368979185,1751421042393,-460.0,0.00018554,2]
[368979186,1751421042402,-787.68,0.00018554,2]
[368979187,1751421042411,-460.0,0.00018554,2]
[368979188,1751421042421,-460.0,0.00018554,2]
[368979189,1751421042431,-1054.41,0.00018554,2]
[368979190,1751421042440,-460.0,0.00018554,2]
[368979191,1751421042450,-263.07380523,0.00018554,2]
[368979192,1751421042459,-301.29330701,0.00018554,2]
[368979193,1751421042469,-460.0,0.00018554,2]
[368979194,1751421042480,-460.0,0.00018554,2]
[368979195,1751421042490,-509.83,0.00018554,2]
[368979196,1751421042501,-460.0,0.00018554,2]
[368979197,1751421042512,-460.0,0.00018554,2]
[368979198,1751421042523,-659.51,0.00018554,2]
[368979199,1751421042533,-460.0,0.00018554,2]
[368979200,1751421042542,-460.0,0.00018554,2]
[368979201,1751421042551,-460.0,0.00018554,2]
[368979202,1751421042561,-460.0,0.00018554,2]
[368979203,1751421042570,-460.0,0.00018554,2]
[368979204,1751421042580,-815.42,0.00018554,2]
[368979205,1751421042590,-460.0,0.00018654,2]
[368979206,1751421042600,-460.0,0.00018654,2]
[368979207,1751421042612,-160.0,0.00018718,2]
[368979208,1751421042621,-230.32585361,0.00018718,2]
[368979209,1751421042631,-215.01728679,0.00018718,2]
[368979210,1751421042641,-837.20943635,0.00018718,2]
[368979211,1751421042652,-160.0,0.00018718,2]
[368979212,1751421042662,-160.0,0.00018718,2]
[368979213,1751421042671,-847.53272281,0.0001872,2]
[368979214,1751421042681,-12571.40790328,0.00018722,2]
[368979215,1751421042692,-622.41549502,0.00018728,2]
[368979216,1751421042702,-460.0,0.00018828,2]
[368979217,1751421042712,-460.0,0.00018828,2]
[368979218,1751421042722,-843.47,0.00018828,2]
[368979219,1751421042733,-460.0,0.00018828,2]
[368979220,1751421042744,-726.87,0.00018828,2]
[368979221,1751421042755,-826.09,0.00018828,2]
[368979222,1751421042764,-460.0,0.00018828,2]
[368979223,1751421042774,-460.0,0.00018828,2]
[368979224,1751421042784,-787.68,0.00018828,2]
[368979225,1751421042794,-460.0,0.00018828,2]
[368979226,1751421042803,-460.0,0.00018828,2]
[368979227,1751421042813,-1054.41,0.00018828,2]
[368979228,1751421042822,-460.0,0.00018828,2]
[368979229,1751421042831,-460.0,0.00018828,2]
[368979230,1751421042843,-460.0,0.00018828,2]
[368979231,1751421042854,-509.83,0.00018828,2]
[368979232,1751421042864,-460.0,0.00018828,2]
[368979233,1751421042874,-460.0,0.00018828,2]
[368979234,1751421042884,-659.51,0.00018828,2]
[368979235,1751421042894,-460.0,0.00018828,2]
[368979236,1751421042903,-460.0,0.00018828,2]
[368979237,1751421042914,-460.0,0.00018828,2]
[368979238,1751421042923,-460.0,0.00018828,2]
[368979239,1751421042933,-460.0,0.00018828,2]
[368979240,1751421042943,-815.42,0.00018828,2]
[368979241,1751421042953,-480.73682576,0.00018928,2]
[368979242,1751421042965,-460.0,0.00018928,2]
[368979243,1751421042978,-622.41549502,0.00019003,2]
[368979244,1751421042989,-460.0,0.00019102,2]
[368979245,1751421042999,-279.03023832,0.00019102,2]
[368979246,1751421043008,-843.47,0.00019102,2]
[368979247,1751421043019,-460.0,0.00019102,2]
[368979248,1751421043028,-726.87,0.00019102,2]
[368979249,1751421043038,-826.09,0.00019102,2]
[368979250,1751421043048,-460.0,0.00019102,2]
[368979251,1751421043061,-460.0,0.00019102,2]
[368979252,1751421043070,-787.68,0.00019102,2]
[368979253,1751421043080,-460.0,0.00019102,2]
[368979254,1751421043090,-460.0,0.00019102,2]
[368979255,1751421043099,-1054.41,0.00019102,2]
[368979256,1751421043109,-460.0,0.00019102,2]
[368979257,1751421043118,-460.0,0.00019102,2]
[368979258,1751421043127,-460.0,0.00019102,2]
[368979259,1751421043136,-509.83,0.00019102,2]
[368979260,1751421043146,-460.0,0.00019102,2]
[368979261,1751421043156,-460.0,0.00019102,2]
[368979262,1751421043165,-659.51,0.00019102,2]
[368979263,1751421043175,-460.0,0.00019102,2]
[368979264,1751421043184,-460.0,0.00019102,2]
[368979265,1751421043194,-460.0,0.00019102,2]
[368979266,1751421043203,-460.0,0.00019102,2]
[368979267,1751421043212,-815.42,0.00019102,2]
[368979268,1751421043221,-241.27500804,0.00019166,2]
[368979269,1751421043232,-176.192718,0.00019178,2]
[368979270,1751421043242,-460.0,0.00019202,2]
[368979272,1751421043252,-852.72492733,0.00019244,2]
[368979273,1751421043261,-622.41549502,0.00019279,2]
[368979274,1751421043271,-158.30473956,0.00019329,2]
[368979275,1751421043281,-460.0,0.00019376,2]
[368979276,1751421043290,-843.47,0.00019376,2]
[368979277,1751421043301,-460.0,0.00019376,2]
[368979278,1751421043310,-726.87,0.00019376,2]
[368979279,1751421043320,-826.09,0.00019376,2]
[368979280,1751421043329,-460.0,0.00019376,2]
[368979281,1751421043338,-460.0,0.00019376,2]
[368979282,1751421043348,-787.68,0.00019376,2]
[368979283,1751421043357,-460.0,0.00019376,2]
[368979284,1751421043367,-460.0,0.00019376,2]
[368979285,1751421043377,-1054.41,0.00019376,2]
[368979286,1751421043387,-460.0,0.00019376,2]
[368979287,1751421043396,-460.0,0.00019376,2]
[368979289,1751421043406,-460.0,0.00019376,2]
[368979291,1751421043415,-509.83,0.00019376,2]
[368979293,1751421043424,-574.43020721,0.00019376,2]
[368979294,1751421043433,-460.0,0.00019376,2]
[368979296,1751421043442,-659.51,0.00019376,2]
[368979297,1751421043451,-460.0,0.00019376,2]
[368979298,1751421043460,-460.0,0.00019376,2]
[368979299,1751421043470,-460.0,0.00019376,2]
[368979300,1751421043479,-460.0,0.00019376,2]
[368979301,1751421043489,-815.42,0.00019376,2]
[368979302,1751421043498,-167.45776085,0.00019476,2]
[368979303,1751421043507,-622.41549502,0.00019555,2]
[368979304,1751421043517,-460.0,0.0001965,2]
[368979305,1751421043526,-843.47,0.0001965,2]
[368979306,1751421043536,-460.0,0.0001965,2]
[368979307,1751421043545,-726.87,0.0001965,2]
[368979308,1751421043555,-826.09,0.0001965,2]
[368979309,1751421043564,-460.0,0.0001965,2]
[368979310,1751421043574,-460.0,0.0001965,2]
[368979311,1751421043584,-787.68,0.0001965,2]
[368979312,1751421043594,-460.0,0.0001965,2]
[368979313,1751421043603,-460.0,0.0001965,2]
[368979314,1751421043612,-1054.41,0.0001965,2]
[368979315,1751421043621,-460.0,0.0001965,2]
[368979316,1751421043631,-460.0,0.0001965,2]
[368979317,1751421043640,-460.0,0.0001965,2]
[368979318,1751421043650,-509.83,0.0001965,2]
[368979319,1751421043659,-460.0,0.0001965,2]
[368979320,1751421043669,-659.51,0.0001965,2]
[368979321,1751421043679,-460.0,0.0001965,2]
[368979322,1751421043688,-460.0,0.0001965,2]
[368979323,1751421043697,-460.0,0.0001965,2]
[368979324,1751421043706,-460.0,0.0001965,2]
[368979325,1751421043716,-815.42,0.0001965,2]
[368979326,1751421043726,-622.41549502,0.00019831,2]
[368979327,1751421043735,-276.07435165,0.00019924,2]
[368979328,1751421043744,-843.47,0.00019924,2]
[368979329,1751421043754,-460.0,0.00019924,2]
[368979330,1751421043763,-726.87,0.00019924,2]
[368979331,1751421043772,-826.09,0.00019924,2]
[368979332,1751421043782,-460.0,0.00019924,2]
[368979333,1751421043791,-460.0,0.00019924,2]
[368979334,1751421043801,-787.68,0.00019924,2]
[368979335,1751421043810,-460.0,0.00019924,2]
[368979336,1751421043820,-291.22206586,0.00019924,2]
[368979337,1751421043829,-1054.41,0.00019924,2]
[368979338,1751421043839,-460.0,0.00019924,2]
[368979339,1751421043848,-460.0,0.00019924,2]
[368979340,1751421043857,-460.0,0.00019924,2]
[368979341,1751421043866,-509.83,0.00019924,2]
[368979342,1751421043875,-460.0,0.00019924,2]
[368979343,1751421043885,-659.51,0.00019924,2]
[368979344,1751421043894,-460.0,0.00019924,2]
[368979345,1751421043903,-460.0,0.00019924,2]
[368979346,1751421043913,-460.0,0.00019924,2]
[368979347,1751421043923,-460.0,0.00019924,2]
[368979348,1751421043933,-815.42,0.00019924,2]
[368979349,1751421043942,-179.65864857,0.00020061,2]
[368979350,1751421043952,-622.41549502,0.00020107,2]
[368979351,1751421043961,-587.0,0.00020175,2]
[368979352,1751421043970,-239.605312,0.00020187,2]
[368979353,1751421043982,-843.47,0.00020198,2]
[368979354,1751421043991,-556.11905533,0.00020198,2]
[368979355,1751421044001,-726.87,0.00020198,2]
[368979356,1751421044102,-826.09,0.00020198,2]
[368979357,1751421044112,-461.36627334,0.00020198,2]
[368979358,1751421044122,-460.0,0.00020198,2]
[368979359,1751421044132,-787.68,0.00020198,2]
[368979360,1751421044143,-460.0,0.00020198,2]
[368979361,1751421044153,-1054.41,0.00020198,2]
[368979362,1751421044164,-460.0,0.00020198,2]
[368979363,1751421044174,-543.13305728,0.00020198,2]
[368979364,1751421044183,-460.0,0.00020198,2]
[368979365,1751421044193,-509.83,0.00020198,2]
[368979366,1751421044203,-460.0,0.00020198,2]
[368979367,1751421044213,-659.51,0.00020198,2]
[368979368,1751421044222,-460.0,0.00020198,2]
[368979369,1751421044233,-460.0,0.00020198,2]
[368979370,1751421044244,-460.0,0.00020198,2]
[368979371,1751421044255,-460.0,0.00020198,2]
[368979372,1751421044265,-815.42,0.00020198,2]
[368979373,1751421044274,-241.27500804,0.00020344,2]
[368979374,1751421044284,-622.41549502,0.00020383,3]
[368979375,1751421044294,-843.47,0.00020472,2]
[368979376,1751421044304,-726.87,0.00020472,2]
[368979377,1751421044314,-826.09,0.00020472,2]
[368979378,1751421044324,-460.0,0.00020472,2]
[368979379,1751421044334,-787.68,0.00020472,2]
[368979380,1751421044344,-460.0,0.00020472,2]
[368979381,1751421044354,-1054.41,0.00020472,2]
[368979382,1751421044364,-460.0,0.00020472,2]
[368979383,1751421044374,-460.0,0.00020472,2]
[368979384,1751421044384,-509.83,0.00020472,2]
[368979385,1751421044393,-603.69535192,0.00020472,2]
[368979386,1751421044402,-659.51,0.00020472,2]
[368979387,1751421044412,-460.0,0.00020472,2]
[368979388,1751421044422,-460.0,0.00020472,2]
[368979389,1751421044432,-269.82,0.00020472,2]
[368979390,1751421044442,-460.0,0.00020472,2]
[368979391,1751421044452,-815.42,0.00020472,2]
[368979392,1751421044461,-474.52,0.000206,2]
[368979393,1751421044471,-222.484,0.00020626,2]
[368979394,1751421044480,-622.41549502,0.00020659,3]
[368979395,1751421044489,-150.69802767,0.00020725,2]
[368979396,1751421044499,-843.47,0.00020746,2]
[368979397,1751421044509,-726.87,0.00020746,2]
[368979398,1751421044519,-826.09,0.00020746,2]
[368979399,1751421044530,-460.0,0.00020746,2]
[368979400,1751421044541,-787.68,0.00020746,2]
[368979401,1751421044550,-460.0,0.00020746,2]
[368979402,1751421044561,-1054.41,0.00020746,2]
[368979403,1751421044570,-460.0,0.00020746,2]
[368979404,1751421044580,-460.0,0.00020746,2]
[368979405,1751421044589,-509.83,0.00020746,2]
[368979406,1751421044598,-659.51,0.00020746,2]
[368979407,1751421044608,-460.0,0.00020746,2]
[368979408,1751421044619,-460.0,0.00020746,2]
[368979409,1751421044629,-460.0,0.00020746,2]
[368979410,1751421044639,-815.42,0.00020746,2]
[368979411,1751421044648,-622.41549502,0.00020934,4]
[368979412,1751421044659,-843.47,0.0002102,2]
[368979413,1751421044670,-726.87,0.0002102,2]
[368979414,1751421044679,-826.09,0.0002102,2]
[368979415,1751421044689,-399.51472163,0.0002102,2]
[368979416,1751421044699,-787.68,0.0002102,2]
[368979417,1751421044710,-460.0,0.0002102,2]
[368979418,1751421044720,-1054.41,0.0002102,2]
[368979419,1751421044730,-460.0,0.0002102,2]
[368979420,1751421044741,-460.0,0.0002102,2]
[368979421,1751421044752,-509.83,0.0002102,2]
[368979422,1751421044762,-659.51,0.0002102,2]
[368979423,1751421044773,-460.0,0.0002102,2]
[368979424,1751421044783,-460.0,0.0002102,2]
[368979425,1751421044794,-460.0,0.0002102,2]
[368979426,1751421044804,-815.42,0.0002102,2]
[368979427,1751421044814,-150.0,0.00021086,2]
[368979428,1751421044824,-852.72492733,0.00021129,2]
[368979429,1751421044834,-622.41549502,0.0002121,4]
[368979430,1751421044846,-843.47,0.00021294,2]
[368979431,1751421044857,-726.87,0.00021294,2]
[368979432,1751421044866,-826.09,0.00021294,2]
[368979433,1751421044878,-787.68,0.00021294,2]
[368979434,1751421044887,-460.0,0.00021294,2]
[368979435,1751421044898,-1054.41,0.00021294,2]
[368979436,1751421044909,-460.0,0.00021294,2]
[368979437,1751421044920,-460.0,0.00021294,2]
[368979438,1751421044929,-509.83,0.00021294,2]
[368979439,1751421044940,-659.51,0.00021294,2]
[368979440,1751421044952,-460.0,0.00021294,2]
[368979441,1751421044961,-460.0,0.00021294,2]
[368979442,1751421044974,-460.0,0.00021294,2]
[368979443,1751421044987,-815.42,0.00021294,2]
[368979444,1751421044996,-622.41549502,0.00021486,5]
[368979445,1751421045006,-241.27500804,0.00021521,2]
[368979446,1751421045016,-843.47,0.00021568,2]
[368979447,1751421045026,-726.87,0.00021568,2]
[368979448,1751421045035,-826.09,0.00021568,2]
[368979449,1751421045045,-787.68,0.00021568,2]
[368979450,1751421045055,-460.0,0.00021568,2]
[368979451,1751421045065,-1054.41,0.00021568,2]
[368979452,1751421045074,-460.0,0.00021568,2]
[368979453,1751421045085,-460.0,0.00021568,2]
[368979454,1751421045096,-509.83,0.00021568,2]
[368979455,1751421045107,-659.51,0.00021568,2]
[368979456,1751421045116,-460.0,0.00021568,2]
[368979457,1751421045125,-460.0,0.00021568,2]
[368979458,1751421045135,-265.99336807,0.00021568,2]
[368979459,1751421045145,-815.42,0.00021568,2]
[368979460,1751421045155,-622.41549502,0.00021762,5]
[368979461,1751421045164,-843.47,0.00021842,2]
[368979462,1751421045174,-726.87,0.00021842,2]
[368979463,1751421045184,-826.09,0.00021842,2]
[368979464,1751421045194,-787.68,0.00021842,2]
[368979465,1751421045203,-460.0,0.00021842,2]
[368979466,1751421045213,-1054.41,0.00021842,2]
[368979467,1751421045222,-450.22913339,0.00021842,2]
[368979468,1751421045231,-460.0,0.00021842,2]
[368979469,1751421045241,-509.83,0.00021842,2]
[368979470,1751421045251,-659.51,0.00021842,2]
[368979471,1751421045260,-460.0,0.00021842,2]
[368979472,1751421045270,-460.0,0.00021842,2]
[368979473,1751421045279,-815.42,0.00021842,2]
[368979474,1751421045288,-150.0,0.00021917,2]
[368979475,1751421045298,-150.16164885,0.00021918,2]
[368979476,1751421045307,-3468.26,0.00022,7]
[368979477,1751421045316,-364.13,0.00022,7]
[368979478,1751421045325,-1000.0,0.00022,2]
[368979479,1751421045335,-1000.0,0.00022,2]
[368979480,1751421045345,-1000.0,0.00022,2]
[368979481,1751421045354,-5000.0,0.00022,32]
[368979482,1751421045364,-1102.87,0.00022,2]
[368979483,1751421045374,-622.41549502,0.00022038,6]
[368979484,1751421045383,-265.0,0.00022038,2]
[368979485,1751421045393,-843.47,0.00022116,2]
[368979486,1751421045402,-726.87,0.00022116,2]
[368979487,1751421045411,-826.09,0.00022116,2]
[368979488,1751421045421,-787.68,0.00022116,2]
[368979489,1751421045430,-460.0,0.00022116,2]
[368979490,1751421045440,-1054.41,0.00022116,2]
[368979491,1751421045449,-557.61760026,0.00022116,2]
[368979492,1751421045459,-509.83,0.00022116,2]
[368979493,1751421045468,-659.51,0.00022116,2]
[368979494,1751421045478,-205.62464604,0.00022116,2]
[368979495,1751421045487,-460.0,0.00022116,2]
[368979496,1751421045497,-815.42,0.00022116,2]
[368979497,1751421045506,-207.4,0.00022135,2]
[368979498,1751421045516,-5000.0,0.00022135,2]
[368979499,1751421045525,-690.642,0.00022135,2]
[368979500,1751421045534,-155.258224,0.00022135,2]
[368979501,1751421045544,-500.0,0.00022135,2]
[368979502,1751421045553,-500.0,0.00022135,2]
[368979503,1751421045563,-500.0,0.00022135,2]
[368979504,1751421045573,-500.0,0.00022135,2]
[368979505,1751421045582,-500.0,0.00022135,2]
[368979506,1751421045591,-500.0,0.00022135,2]
[368979507,1751421045600,-500.0,0.00022135,2]
[368979508,1751421045609,-500.0,0.00022135,2]
[368979509,1751421045618,-500.0,0.00022135,2]
[368979510,1751421045627,-500.0,0.00022135,2]
[368979511,1751421045636,-500.0,0.00022135,2]
[368979512,1751421045646,-500.0,0.00022135,2]
[368979513,1751421045655,-500.0,0.00022135,2]
[368979514,1751421045665,-500.0,0.00022135,2]
[368979515,1751421045675,-500.0,0.00022135,2]
[368979516,1751421045684,-150.45212811,0.00022157,2]
[368979517,1751421045694,-150.27123997,0.00022157,2]
[368979518,1751421045703,-716.195754,0.0002219,2]
[368979519,1751421045713,-9801.98,0.000222,2]
[368979520,1751421045723,-742.6949969,0.00022245,2]
[368979521,1751421045732,-770.17471178,0.000223,2]
[368979522,1751421045743,-622.41549502,0.00022314,7]
[368979523,1751421045752,-798.67117612,0.00022355,2]
[368979524,1751421045762,-843.47,0.0002239,2]
[368979525,1751421045772,-726.87,0.0002239,2]
[368979526,1751421045782,-826.09,0.0002239,2]
[368979527,1751421045794,-787.68,0.0002239,2]
[368979528,1751421045803,-460.0,0.0002239,2]
[368979529,1751421045815,-1054.41,0.0002239,2]
[368979530,1751421045824,-509.83,0.0002239,2]
[368979531,1751421045833,-659.51,0.0002239,2]
[368979532,1751421045843,-460.0,0.0002239,2]
[368979533,1751421045852,-815.42,0.0002239,2]
[368979534,1751421045862,-165.48870318,0.0002241,2]
[368979535,1751421045871,-622.41549502,0.0002259,7]
[368979536,1751421045881,-843.47,0.00022664,2]
[368979537,1751421045891,-726.87,0.00022664,2]
[368979538,1751421045901,-826.09,0.00022664,2]
[368979539,1751421045910,-787.68,0.00022664,2]
[368979540,1751421045920,-460.0,0.00022664,2]
[368979541,1751421045929,-1054.41,0.00022664,2]
[368979542,1751421045938,-509.83,0.00022664,2]
[368979543,1751421045948,-659.51,0.00022664,2]
[368979544,1751421045957,-602.76265808,0.00022664,2]
[368979545,1751421045967,-815.42,0.00022664,2]
[368979546,1751421045977,-5000.0,0.00022683,2]
[368979547,1751421045988,-241.27500804,0.00022699,2]
[368979548,1751421045998,-622.41549502,0.00022866,8]
[368979549,1751421046008,-843.47,0.00022938,2]
[368979550,1751421046017,-726.87,0.00022938,2]
[368979551,1751421046030,-826.09,0.00022938,2]
[368979552,1751421046041,-787.68,0.00022938,2]
[368979553,1751421046051,-159.25288921,0.00022938,2]
[368979554,1751421046061,-1054.41,0.00022938,2]
[368979555,1751421046071,-509.83,0.00022938,2]
[368979557,1751421046080,-659.51,0.00022938,2]
[368979559,1751421046090,-815.42,0.00022938,2]
[368979561,1751421046099,-1000.0,0.00023,2]
[368979563,1751421046108,-1000.0,0.00023,2]
[368979565,1751421046118,-852.72492733,0.00023015,2]
[368979567,1751421046128,-622.41549502,0.00023141,8]
[368979569,1751421046138,-843.6744152,0.00023212,2]
[368979571,1751421046148,-726.96541706,0.00023212,2]
[368979572,1751421046157,-826.21421965,0.00023212,2]
[368979573,1751421046166,-787.79216586,0.00023212,2]
[368979574,1751421046176,-1054.47013757,0.00023212,2]
[368979576,1751421046185,-509.9473916,0.00023212,2]
[368979578,1751421046196,-659.66416625,0.00023212,2]
[368979580,1751421046205,-815.44224182,0.00023212,2]
[368979582,1751421046214,-5000.0,0.00023231,2]
[368979584,1751421046223,-151.0,0.000233,7]
[368979586,1751421046233,-474.52,0.000234,7]
[368979590,1751421046243,-622.41549502,0.00023417,9]
[368979602,1751421046341,-168.0,0.00023428,2]
[368979603,1751421046351,-1000.0,0.000235,2]
[368979604,1751421046361,-1000.0,0.000235,2]
[368979605,1751421046370,-1000.0,0.000235,2]
[368979606,1751421046380,-1000.0,0.000235,2]
[368979607,1751421046389,-1000.0,0.000235,2]
[368979608,1751421046398,-1000.0,0.000235,2]
[368979609,1751421046408,-1000.0,0.000235,2]
[368979610,1751421046418,-215.0738,0.00023504,2]
[368979611,1751421046427,-168.0,0.0002362,2]
[368979612,1751421046438,-622.41549502,0.00023693,9]
[368979613,1751421046448,-585.51,0.000237,2]
[368979614,1751421046457,-9801.98,0.000237,2]
[368979615,1751421046467,-168.0,0.00023789,2]
[368979616,1751421046477,-168.0,0.00023789,2]
[368979617,1751421046487,-241.27500804,0.00023877,2]
[368979618,1751421046496,-2616.24440354,0.000239,2]
[368979619,1751421046506,-622.41549502,0.00023969,10]
[368979620,1751421046516,-524.61914904,0.00024,3]
[368979621,1751421046525,-524.61914904,0.00024,3]
[368979622,1751421046535,-524.61914904,0.00024,7]
[368979623,1751421046545,-823.292728,0.00024002,2]
[368979624,1751421046555,-151.0,0.000241,8]
[368979625,1751421046564,-168.0,0.00024173,2]
[368979626,1751421046574,-622.41549502,0.00024245,10]
[368979627,1751421046584,-366.3581911,0.00024247,2]
[368979628,1751421046593,-366.3581911,0.00024247,2]
[368979629,1751421046605,-366.3581911,0.00024247,2]
[368979630,1751421046616,-366.3581911,0.00024247,2]
[368979631,1751421046626,-366.3581911,0.00024247,2]
[368979632,1751421046635,-726.3267494,0.00024247,2]
[368979633,1751421046645,-366.3581911,0.00024247,2]
[368979634,1751421046656,-366.3581911,0.00024247,2]
[368979635,1751421046666,-366.3581911,0.00024247,2]
[368979636,1751421046678,-366.3581911,0.00024247,2]
[368979637,1751421046689,-366.3581911,0.00024247,2]
[368979638,1751421046698,-366.3581911,0.00024247,2]
[368979639,1751421046708,-366.3581911,0.00024247,2]
[368979640,1751421046718,-366.3581911,0.00024247,2]
[368979641,1751421046727,-366.3581911,0.00024247,2]
[368979642,1751421046739,-156.2995168,0.00024384,2]
[368979643,1751421046748,-161.517403,0.00024384,2]
[368979644,1751421046759,-357.4601095,0.00024384,2]
[368979645,1751421046769,-1156.9700045,0.00024384,2]
[368979647,1751421046778,-307.6589187,0.00024384,2]
[368979649,1751421046788,-159.3450821,0.00024384,2]
[368979650,1751421046798,-1150.4312616,0.00024384,2]
[368979651,1751421046807,-159.3450821,0.00024384,2]
[368979652,1751421046816,-153.0,0.00024384,2]